[Event "*** Titled Tuesday Blitz"]
[Site "Chess.com"]
[Date "2020.05.05"]
[Round "5"]
[White "AthanasiusLefebvre"]
[Black "Ariadna_Atreides"]
[Result "0-1"]
[WhiteElo "2069"]
[BlackElo "1994"]
[TimeControl "180+1"]
[EndTime "10:56:57 PDT"]
[Termination "Ariadna_Atreides won on time"]

1. Nf3 {[%clk 0:03:00.9]} 1... d5 {[%clk 0:02:59.7]} 2. d3 {[%clk 0:02:59.9]}
2... Nf6 {[%clk 0:02:58.9]} 3. g3 {[%clk 0:02:58.6]} 3... g6 {[%clk 0:02:56.5]}
4. Bg2 {[%clk 0:02:56.9]} 4... Bg7 {[%clk 0:02:57.1]} 5. O-O {[%clk 0:02:56.9]}
5... O-O {[%clk 0:02:57.4]} 6. c4 {[%clk 0:02:56.6]} 6... c6 {[%clk 0:02:56.7]}
7. Nc3 {[%clk 0:02:55.7]} 7... d4 {[%clk 0:02:55.2]} 8. Na4 {[%clk 0:02:54.6]}
8... Re8 {[%clk 0:02:36.5]} 9. b4 {[%clk 0:02:51.7]} 9... e5 {[%clk 0:02:32.2]}
10. Rb1 {[%clk 0:02:49.2]} 10... h6 {[%clk 0:02:27.6]} 11. b5 {[%clk 0:02:45]}
11... cxb5 {[%clk 0:02:19.7]} 12. Rxb5 {[%clk 0:02:42.7]} 12... Nc6 {[%clk
0:02:12]} 13. Nc5 {[%clk 0:02:20]} 13... Qc7 {[%clk 0:01:59.7]} 14. Bb2 {[%clk
0:01:54]} 14... Bf8 {[%clk 0:01:55.3]} 15. e3 {[%clk 0:01:38.5]} 15... a6 {[%clk
0:01:52.1]} 16. Rxb7 {[%clk 0:00:46.1]} 16... Bxb7 {[%clk 0:01:49.9]} 17. Nb3
{[%clk 0:00:31.3]} 17... Na5 {[%clk 0:01:46]} 18. exd4 {[%clk 0:00:26.8]} 18...
Nxb3 {[%clk 0:01:44]} 19. axb3 {[%clk 0:00:22.5]} 19... exd4 {[%clk 0:01:33.6]}
20. Bxd4 {[%clk 0:00:22.1]} 20... Bg7 {[%clk 0:01:31.7]} 21. Qa1 {[%clk
0:00:18]} 21... Nh5 {[%clk 0:01:24.7]} 22. b4 {[%clk 0:00:13.6]} 22... Bxd4
{[%clk 0:01:19.7]} 23. Qxd4 {[%clk 0:00:12.7]} 23... Rad8 {[%clk 0:01:17.4]} 24.
Qc3 {[%clk 0:00:11.9]} 24... Qd6 {[%clk 0:01:14.6]} 25. Rd1 {[%clk 0:00:08.9]}
25... Qf6 {[%clk 0:01:06.9]} 26. d4 {[%clk 0:00:08.5]} 26... Ng7 {[%clk
0:00:48.7]} 27. Rd2 {[%clk 0:00:06.2]} 27... Bxf3 {[%clk 0:00:45]} 28. Bxf3
{[%clk 0:00:05.5]} 28... Nf5 {[%clk 0:00:44.7]} 29. Bd5 {[%clk 0:00:03.1]} 29...
Re1+ {[%clk 0:00:33.5]} 30. Kg2 {[%clk 0:00:02.4]} 30... Ne3+ {[%clk 0:00:33.3]}
31. Qxe3 {[%clk 0:00:01.8]} 31... Rxe3 {[%clk 0:00:32.7]} 32. fxe3 {[%clk
0:00:02.7]} 32... Qe7 {[%clk 0:00:30.4]} 33. Rf2 {[%clk 0:00:02.3]} 33... Qxe3
{[%clk 0:00:20.4]} 0-1

[Event "*** Titled Tuesday Blitz"]
[Site "Chess.com"]
[Date "2020.05.05"]
[Round "5"]
[White "Tsyhanchuk_Stanislav"]
[Black "A-Fier"]
[Result "0-1"]
[WhiteElo "2591"]
[BlackElo "2786"]
[TimeControl "180+1"]
[EndTime "10:56:59 PDT"]
[Termination "A-Fier won on time"]

1. e4 {[%clk 0:03:00.9]} 1... c5 {[%clk 0:03:00]} 2. Nf3 {[%clk 0:03:00.2]} 2...
e6 {[%clk 0:03:00.4]} 3. d4 {[%clk 0:03:00.4]} 3... cxd4 {[%clk 0:03:01.3]} 4.
Nxd4 {[%clk 0:03:00.7]} 4... Nc6 {[%clk 0:03:01]} 5. Nc3 {[%clk 0:03:00.5]} 5...
Qc7 {[%clk 0:03:01.4]} 6. f4 {[%clk 0:02:59.9]} 6... Nxd4 {[%clk 0:02:57.7]} 7.
Qxd4 {[%clk 0:02:56.5]} 7... b6 {[%clk 0:02:58.6]} 8. Be3 {[%clk 0:02:53.8]}
8... Bb7 {[%clk 0:02:42.2]} 9. O-O-O {[%clk 0:02:49.1]} 9... Nf6 {[%clk
0:02:42.2]} 10. e5 {[%clk 0:02:02.2]} 10... Nd5 {[%clk 0:02:41.7]} 11. Nxd5
{[%clk 0:02:01.1]} 11... Bxd5 {[%clk 0:02:41]} 12. Kb1 {[%clk 0:01:57.8]} 12...
Rc8 {[%clk 0:02:40.6]} 13. Rc1 {[%clk 0:01:52.2]} 13... Bc5 {[%clk 0:02:37.5]}
14. Qd2 {[%clk 0:01:50.1]} 14... O-O {[%clk 0:02:37.1]} 15. Rg1 {[%clk
0:01:46.3]} 15... Bxe3 {[%clk 0:02:31.9]} 16. Qxe3 {[%clk 0:01:44.5]} 16... f6
{[%clk 0:02:32.8]} 17. Bd3 {[%clk 0:01:42.7]} 17... fxe5 {[%clk 0:02:31.7]} 18.
fxe5 {[%clk 0:01:43.6]} 18... Qc5 {[%clk 0:02:21.7]} 19. Qg5 {[%clk 0:01:34.7]}
19... Bc4 {[%clk 0:02:14.2]} 20. Be4 {[%clk 0:01:31.6]} 20... d5 {[%clk
0:02:12.3]} 21. Bf3 {[%clk 0:01:20.8]} 21... Rf5 {[%clk 0:02:11.3]} 22. Qg3
{[%clk 0:01:10.3]} 22... Qd4 {[%clk 0:02:09.6]} 23. Rge1 {[%clk 0:01:05.9]}
23... Qf4 {[%clk 0:02:04.1]} 24. Bg4 {[%clk 0:01:03]} 24... Qxg3 {[%clk
0:01:46.9]} 25. hxg3 {[%clk 0:01:03.9]} 25... g6 {[%clk 0:01:47.1]} 26. Bxf5
{[%clk 0:01:02.1]} 26... gxf5 {[%clk 0:01:48]} 27. b3 {[%clk 0:01:00.5]} 27...
Bb5 {[%clk 0:01:48.3]} 28. c4 {[%clk 0:00:49.3]} 28... dxc4 {[%clk 0:01:47.5]}
29. Re3 {[%clk 0:00:44.8]} 29... Rc5 {[%clk 0:01:42.7]} 30. bxc4 {[%clk
0:00:39.5]} 30... Bxc4 {[%clk 0:01:40]} 31. Kb2 {[%clk 0:00:25.9]} 31... b5
{[%clk 0:01:39.5]} 32. a4 {[%clk 0:00:13.1]} 32... bxa4 {[%clk 0:01:38.7]} 33.
Rec3 {[%clk 0:00:12.6]} 33... Rb5+ {[%clk 0:01:39.1]} 34. Ka1 {[%clk 0:00:11.3]}
34... Bd5 {[%clk 0:01:37.9]} 35. Rc8+ {[%clk 0:00:09.9]} 35... Kg7 {[%clk
0:01:34.8]} 36. R1c7+ {[%clk 0:00:10.8]} 36... Kh6 {[%clk 0:01:35.2]} 37. Rxa7
{[%clk 0:00:08.9]} 37... Rb3 {[%clk 0:01:29.2]} 38. Rg8 {[%clk 0:00:08.4]} 38...
Be4 {[%clk 0:01:20.5]} 39. Rxa4 {[%clk 0:00:05]} 39... Rb5 {[%clk 0:01:11.8]}
40. Ra7 {[%clk 0:00:03.5]} 40... Rxe5 {[%clk 0:01:10.4]} 41. Rgg7 {[%clk
0:00:03.8]} 41... f4 {[%clk 0:01:10.3]} 42. gxf4 {[%clk 0:00:03.6]} 42... Rd5
{[%clk 0:01:10.5]} 43. g4 {[%clk 0:00:02.8]} 43... Rd2 {[%clk 0:01:08]} 44. Rgf7
{[%clk 0:00:01.6]} 44... Bg6 {[%clk 0:00:52.5]} 45. Rf6 {[%clk 0:00:01.5]} 45...
Rf2 {[%clk 0:00:53]} 46. f5 {[%clk 0:00:01.2]} 46... Kg5 {[%clk 0:00:53]} 47.
fxe6 {[%clk 0:00:01.3]} 47... Rxf6 {[%clk 0:00:52.5]} 0-1

[Event "*** Titled Tuesday Blitz"]
[Site "Chess.com"]
[Date "2020.05.05"]
[Round "5"]
[White "leoduarte"]
[Black "norwaytoadog"]
[Result "1-0"]
[WhiteElo "2343"]
[BlackElo "2171"]
[TimeControl "180+1"]
[EndTime "10:56:59 PDT"]
[Termination "leoduarte won on time"]

1. e4 {[%clk 0:03:00.9]} 1... c5 {[%clk 0:02:56.6]} 2. Nf3 {[%clk 0:02:59.6]}
2... d6 {[%clk 0:02:56.8]} 3. d4 {[%clk 0:02:59.3]} 3... cxd4 {[%clk 0:02:56.4]}
4. Nxd4 {[%clk 0:03:00.2]} 4... Nf6 {[%clk 0:02:56.8]} 5. Nc3 {[%clk 0:03:00.7]}
5... a6 {[%clk 0:02:57]} 6. Be2 {[%clk 0:03:00.8]} 6... e5 {[%clk 0:02:56.4]} 7.
Nb3 {[%clk 0:03:00.8]} 7... Be7 {[%clk 0:02:55.9]} 8. O-O {[%clk 0:02:58.8]}
8... O-O {[%clk 0:02:55.3]} 9. Be3 {[%clk 0:02:58.7]} 9... Be6 {[%clk
0:02:53.2]} 10. Qd3 {[%clk 0:02:58.7]} 10... Nbd7 {[%clk 0:02:49]} 11. Nd5
{[%clk 0:02:55.3]} 11... Bxd5 {[%clk 0:02:43.6]} 12. exd5 {[%clk 0:02:56.2]}
12... Rc8 {[%clk 0:02:35.3]} 13. c4 {[%clk 0:02:51.7]} 13... a5 {[%clk
0:02:30.9]} 14. Rac1 {[%clk 0:02:39.1]} 14... b6 {[%clk 0:02:06.8]} 15. Rfd1
{[%clk 0:02:15.5]} 15... Ne8 {[%clk 0:01:56.3]} 16. Bg4 {[%clk 0:01:43.3]} 16...
Nef6 {[%clk 0:01:17.7]} 17. Bh3 {[%clk 0:01:42.8]} 17... a4 {[%clk 0:01:07.3]}
18. Nd2 {[%clk 0:01:39.9]} 18... g6 {[%clk 0:00:55.6]} 19. Nb1 {[%clk
0:01:35.1]} 19... Ne8 {[%clk 0:00:45.4]} 20. Bxd7 {[%clk 0:01:32.7]} 20... Qxd7
{[%clk 0:00:44.6]} 21. Na3 {[%clk 0:01:17.1]} 21... Rb8 {[%clk 0:00:35.4]} 22.
b4 {[%clk 0:01:05.4]} 22... f5 {[%clk 0:00:32.2]} 23. f3 {[%clk 0:01:04.8]}
23... e4 {[%clk 0:00:24]} 24. fxe4 {[%clk 0:01:01.1]} 24... f4 {[%clk 0:00:24]}
25. Bd4 {[%clk 0:00:39.3]} 25... Nf6 {[%clk 0:00:15.8]} 26. Nc2 {[%clk
0:00:28.9]} 26... Ng4 {[%clk 0:00:12.4]} 27. Ne1 {[%clk 0:00:29.3]} 27... Rbe8
{[%clk 0:00:07.7]} 28. Nf3 {[%clk 0:00:28]} 28... h5 {[%clk 0:00:05.3]} 29. Bxb6
{[%clk 0:00:27.6]} 29... Bf6 {[%clk 0:00:04]} 30. c5 {[%clk 0:00:22.7]} 30...
dxc5 {[%clk 0:00:03]} 31. bxc5 {[%clk 0:00:22.4]} 1-0

[Event "*** Titled Tuesday Blitz"]
[Site "Chess.com"]
[Date "2020.05.05"]
[Round "5"]
[White "Gabrielian_Artur"]
[Black "lupta_robin"]
[Result "1-0"]
[WhiteElo "2711"]
[BlackElo "2514"]
[TimeControl "180+1"]
[EndTime "10:57:00 PDT"]
[Termination "Gabrielian_Artur won by resignation"]

1. e4 {[%clk 0:03:00.9]} 1... c5 {[%clk 0:02:58.8]} 2. Nc3 {[%clk 0:03:00.5]}
2... Nc6 {[%clk 0:02:59.1]} 3. Bb5 {[%clk 0:02:59.6]} 3... Nd4 {[%clk
0:02:56.2]} 4. Bc4 {[%clk 0:02:59.3]} 4... e6 {[%clk 0:02:56.8]} 5. Nf3 {[%clk
0:02:59.1]} 5... Nf6 {[%clk 0:02:55.7]} 6. O-O {[%clk 0:02:55.9]} 6... a6 {[%clk
0:02:55]} 7. e5 {[%clk 0:02:46.8]} 7... d5 {[%clk 0:02:53.8]} 8. exf6 {[%clk
0:02:41.5]} 8... dxc4 {[%clk 0:02:50]} 9. fxg7 {[%clk 0:02:41.1]} 9... Bxg7
{[%clk 0:02:50.2]} 10. d3 {[%clk 0:02:38.8]} 10... cxd3 {[%clk 0:02:38.6]} 11.
Qxd3 {[%clk 0:02:37.5]} 11... b6 {[%clk 0:02:16.8]} 12. Nxd4 {[%clk 0:02:24.8]}
12... Qxd4 {[%clk 0:02:09.6]} 13. Qf3 {[%clk 0:02:24.6]} 13... Rb8 {[%clk
0:01:28.9]} 14. Bf4 {[%clk 0:01:56.3]} 14... Bb7 {[%clk 0:01:18.3]} 15. Qg3
{[%clk 0:01:56.2]} 15... Rc8 {[%clk 0:01:14]} 16. Rad1 {[%clk 0:01:50]} 16...
Qf6 {[%clk 0:01:13.1]} 17. Rd6 {[%clk 0:01:42.9]} 17... Bc6 {[%clk 0:01:09.1]}
18. Re1 {[%clk 0:01:38.1]} 18... O-O {[%clk 0:01:02.4]} 19. Re3 {[%clk
0:01:03.4]} 19... Qg6 {[%clk 0:00:44.6]} 20. Qh3 {[%clk 0:00:59.5]} 20... Qxc2
{[%clk 0:00:24.9]} 21. Rg3 {[%clk 0:00:56]} 21... Rfd8 {[%clk 0:00:16.5]} 22.
Qh6 {[%clk 0:00:43.3]} 22... Qg6 {[%clk 0:00:06.5]} 23. Rxg6 {[%clk 0:00:42.6]}
23... hxg6 {[%clk 0:00:06.3]} 24. Qh4 {[%clk 0:00:39.8]} 24... Rxd6 {[%clk
0:00:03.7]} 25. Bxd6 {[%clk 0:00:39.8]} 25... b5 {[%clk 0:00:03.7]} 26. Ne4
{[%clk 0:00:36.4]} 26... Bxe4 {[%clk 0:00:03.4]} 27. Qxe4 {[%clk 0:00:35.9]}
27... Bxb2 {[%clk 0:00:04.2]} 28. h4 {[%clk 0:00:33.7]} 28... c4 {[%clk
0:00:03.4]} 29. Qb7 {[%clk 0:00:33.5]} 29... Rd8 {[%clk 0:00:02.9]} 30. Qc7
{[%clk 0:00:29.3]} 30... Re8 {[%clk 0:00:02.3]} 31. Qd7 {[%clk 0:00:24.1]} 31...
Ra8 {[%clk 0:00:01.5]} 32. g4 {[%clk 0:00:19.3]} 32... c3 {[%clk 0:00:01.2]} 33.
Be5 {[%clk 0:00:19.6]} 33... c2 {[%clk 0:00:01.5]} 34. Bxb2 {[%clk 0:00:19.5]}
1-0

[Event "*** Titled Tuesday Blitz"]
[Site "Chess.com"]
[Date "2020.05.05"]
[Round "5"]
[White "Hasangatin_Ramil"]
[Black "Shield12"]
[Result "0-1"]
[WhiteElo "2526"]
[BlackElo "2811"]
[TimeControl "180+1"]
[EndTime "10:57:00 PDT"]
[Termination "Shield12 won on time"]

1. e4 {[%clk 0:03:00]} 1... e5 {[%clk 0:03:00]} 2. Nf3 {[%clk 0:02:57.9]} 2...
Nc6 {[%clk 0:03:00.1]} 3. Bb5 {[%clk 0:02:56.9]} 3... a6 {[%clk 0:02:59.8]} 4.
Ba4 {[%clk 0:02:57.1]} 4... Nf6 {[%clk 0:02:59.6]} 5. Bxc6 {[%clk 0:02:57.2]}
5... dxc6 {[%clk 0:02:59.4]} 6. d3 {[%clk 0:02:57.4]} 6... Bd6 {[%clk
0:02:52.7]} 7. Bg5 {[%clk 0:02:57.7]} 7... h6 {[%clk 0:02:50.6]} 8. Bh4 {[%clk
0:02:57.8]} 8... Qe7 {[%clk 0:02:44.5]} 9. Nbd2 {[%clk 0:02:57.7]} 9... Bg4
{[%clk 0:02:41.1]} 10. h3 {[%clk 0:02:57.3]} 10... Bh5 {[%clk 0:02:40.3]} 11.
Qe2 {[%clk 0:02:57.1]} 11... g5 {[%clk 0:02:38.8]} 12. Bg3 {[%clk 0:02:56.6]}
12... O-O-O {[%clk 0:02:37.9]} 13. Nc4 {[%clk 0:02:56.6]} 13... Nd7 {[%clk
0:02:36.8]} 14. Ne3 {[%clk 0:02:56.5]} 14... Bg6 {[%clk 0:02:36]} 15. h4 {[%clk
0:02:54]} 15... f6 {[%clk 0:02:35.6]} 16. hxg5 {[%clk 0:02:48.4]} 16... hxg5
{[%clk 0:02:34.6]} 17. O-O-O {[%clk 0:02:47.4]} 17... Nc5 {[%clk 0:02:33.4]} 18.
Nd2 {[%clk 0:02:36.5]} 18... Ne6 {[%clk 0:02:30.7]} 19. Qg4 {[%clk 0:02:22.1]}
19... Kb8 {[%clk 0:02:25.9]} 20. Nf5 {[%clk 0:02:20.2]} 20... Qf7 {[%clk
0:02:23.2]} 21. Nh6 {[%clk 0:01:47.3]} 21... Qd7 {[%clk 0:02:16.4]} 22. Kb1
{[%clk 0:01:35.5]} 22... Be7 {[%clk 0:02:13.4]} 23. Nb3 {[%clk 0:01:18.8]} 23...
c5 {[%clk 0:02:09.4]} 24. Nd2 {[%clk 0:00:50.5]} 24... a5 {[%clk 0:01:53.7]} 25.
Nf5 {[%clk 0:00:49.9]} 25... Nd4 {[%clk 0:01:50.9]} 26. Ne3 {[%clk 0:00:50]}
26... Qc6 {[%clk 0:01:42.1]} 27. Nd5 {[%clk 0:00:48]} 27... Rxh1 {[%clk
0:01:31.3]} 28. Rxh1 {[%clk 0:00:47.1]} 28... Bf8 {[%clk 0:01:30.5]} 29. Rh8
{[%clk 0:00:42.6]} 29... Bf7 {[%clk 0:01:28.4]} 30. c4 {[%clk 0:00:38.4]} 30...
Qd6 {[%clk 0:01:20.3]} 31. Nf3 {[%clk 0:00:35.3]} 31... c6 {[%clk 0:01:14.7]}
32. Nxd4 {[%clk 0:00:34.8]} 32... cxd4 {[%clk 0:01:13.9]} 33. Nb6 {[%clk
0:00:28.5]} 33... Kc7 {[%clk 0:01:04.5]} 34. Na4 {[%clk 0:00:26.7]} 34... b5
{[%clk 0:00:41.8]} 35. c5 {[%clk 0:00:25.2]} 35... Qe6 {[%clk 0:00:41.7]} 36.
Qxe6 {[%clk 0:00:24.3]} 36... Bxe6 {[%clk 0:00:42.6]} 37. Rh7+ {[%clk
0:00:16.9]} 37... Rd7 {[%clk 0:00:38.7]} 38. Rxd7+ {[%clk 0:00:13.8]} 38... Bxd7
{[%clk 0:00:39.6]} 39. Nb6 {[%clk 0:00:12.3]} 39... Be6 {[%clk 0:00:39.5]} 0-1

[Event "*** Titled Tuesday Blitz"]
[Site "Chess.com"]
[Date "2020.05.05"]
[Round "5"]
[White "PenguinPacks"]
[Black "mirochka"]
[Result "1-0"]
[WhiteElo "2351"]
[BlackElo "2170"]
[TimeControl "180+1"]
[EndTime "10:57:00 PDT"]
[Termination "PenguinPacks won on time"]

1. e4 {[%clk 0:03:00.9]} 1... c5 {[%clk 0:02:58.9]} 2. Nc3 {[%clk 0:03:01.2]}
2... Nc6 {[%clk 0:02:57.7]} 3. Nf3 {[%clk 0:03:00.8]} 3... e6 {[%clk 0:02:44.4]}
4. d4 {[%clk 0:02:53.5]} 4... cxd4 {[%clk 0:02:44.8]} 5. Nxd4 {[%clk 0:02:54.4]}
5... Qc7 {[%clk 0:02:44.5]} 6. Be2 {[%clk 0:02:52.2]} 6... a6 {[%clk 0:02:43.8]}
7. O-O {[%clk 0:02:51]} 7... b5 {[%clk 0:02:43.7]} 8. Be3 {[%clk 0:02:49.6]}
8... Nf6 {[%clk 0:02:42.1]} 9. a3 {[%clk 0:02:49.1]} 9... Bb7 {[%clk 0:02:40.6]}
10. f4 {[%clk 0:02:47.2]} 10... Nxd4 {[%clk 0:02:38.3]} 11. Qxd4 {[%clk
0:02:48.1]} 11... Rc8 {[%clk 0:02:33.3]} 12. Bf3 {[%clk 0:02:42.5]} 12... Bc5
{[%clk 0:02:27.6]} 13. Qxc5 {[%clk 0:02:40.9]} 13... Qxc5 {[%clk 0:02:27.4]} 14.
Bxc5 {[%clk 0:02:41.8]} 14... Rxc5 {[%clk 0:02:27.4]} 15. Rfd1 {[%clk
0:02:41.5]} 15... Rc7 {[%clk 0:02:13.6]} 16. Rd6 {[%clk 0:02:38.1]} 16... Ke7
{[%clk 0:02:08.4]} 17. Rad1 {[%clk 0:02:37.2]} 17... Rhc8 {[%clk 0:02:06]} 18.
R1d4 {[%clk 0:01:49.9]} 18... Bc6 {[%clk 0:01:50.1]} 19. e5 {[%clk 0:01:26.7]}
19... Ne8 {[%clk 0:01:49.2]} 20. Bxc6 {[%clk 0:01:24.9]} 20... dxc6 {[%clk
0:01:45.7]} 21. Ne4 {[%clk 0:01:22.1]} 21... c5 {[%clk 0:01:38.6]} 22. Rd2
{[%clk 0:01:16]} 22... Ra7 {[%clk 0:01:37]} 23. Rb6 {[%clk 0:01:12.5]} 23... c4
{[%clk 0:01:07.7]} 24. g4 {[%clk 0:00:55.9]} 24... f6 {[%clk 0:01:06.3]} 25.
exf6+ {[%clk 0:00:50.3]} 25... gxf6 {[%clk 0:01:05]} 26. Re2 {[%clk 0:00:49.4]}
26... Kf7 {[%clk 0:00:51.2]} 27. f5 {[%clk 0:00:14.7]} 27... exf5 {[%clk
0:00:27.1]} 28. gxf5 {[%clk 0:00:15.6]} 28... Rd8 {[%clk 0:00:24.1]} 29. Re6
{[%clk 0:00:15.2]} 29... Rd1+ {[%clk 0:00:19.1]} 30. Kf2 {[%clk 0:00:15.1]}
30... Nc7 {[%clk 0:00:18.6]} 31. Nd6+ {[%clk 0:00:14.4]} 31... Kg7 {[%clk
0:00:16.1]} 32. Re7+ {[%clk 0:00:14.4]} 32... Kh6 {[%clk 0:00:14.3]} 33. R2e4
{[%clk 0:00:14.8]} 33... Rd2+ {[%clk 0:00:09.3]} 34. Kg3 {[%clk 0:00:14.7]} 1-0

[Event "*** Titled Tuesday Blitz"]
[Site "Chess.com"]
[Date "2020.05.05"]
[Round "5"]
[White "Chessalary"]
[Black "allvim"]
[Result "0-1"]
[WhiteElo "2171"]
[BlackElo "2343"]
[TimeControl "180+1"]
[EndTime "10:57:00 PDT"]
[Termination "allvim won by checkmate"]

1. e4 {[%clk 0:02:58.9]} 1... c5 {[%clk 0:02:59.5]} 2. Nf3 {[%clk 0:02:56.4]}
2... d6 {[%clk 0:02:59.8]} 3. d4 {[%clk 0:02:55.9]} 3... cxd4 {[%clk 0:03:00.7]}
4. Nxd4 {[%clk 0:02:56.8]} 4... Nf6 {[%clk 0:03:01.1]} 5. Nc3 {[%clk 0:02:57]}
5... a6 {[%clk 0:03:01.7]} 6. Bc4 {[%clk 0:02:56.4]} 6... e6 {[%clk 0:03:01.9]}
7. Bb3 {[%clk 0:02:56.7]} 7... Be7 {[%clk 0:03:01.3]} 8. g4 {[%clk 0:02:55.1]}
8... Nc6 {[%clk 0:03:00.1]} 9. g5 {[%clk 0:02:53.5]} 9... Nd7 {[%clk 0:02:48]}
10. h4 {[%clk 0:02:51.5]} 10... Nc5 {[%clk 0:02:44.6]} 11. Be3 {[%clk
0:02:47.6]} 11... Nxb3 {[%clk 0:02:36.6]} 12. Nxb3 {[%clk 0:02:41.7]} 12... Ne5
{[%clk 0:02:32.1]} 13. Qe2 {[%clk 0:02:39.6]} 13... Qc7 {[%clk 0:02:30.6]} 14.
O-O-O {[%clk 0:02:31]} 14... b5 {[%clk 0:02:19]} 15. f4 {[%clk 0:02:13.7]} 15...
Nc4 {[%clk 0:02:18.8]} 16. Bd4 {[%clk 0:02:01.3]} 16... O-O {[%clk 0:01:53.6]}
17. h5 {[%clk 0:01:59.6]} 17... Bb7 {[%clk 0:01:48.7]} 18. g6 {[%clk 0:01:54.1]}
18... e5 {[%clk 0:01:43.9]} 19. fxe5 {[%clk 0:01:53.1]} 19... dxe5 {[%clk
0:01:43.9]} 20. Be3 {[%clk 0:01:38]} 20... Rac8 {[%clk 0:01:26.3]} 21. gxf7+
{[%clk 0:01:33.2]} 21... Rxf7 {[%clk 0:01:21.2]} 22. Rh2 {[%clk 0:00:50.1]}
22... Nxb2 {[%clk 0:01:14.8]} 23. Kxb2 {[%clk 0:00:38.5]} 23... Qxc3+ {[%clk
0:01:14.6]} 24. Kb1 {[%clk 0:00:39.4]} 24... Bxe4 {[%clk 0:01:08.4]} 25. Bd4
{[%clk 0:00:20.1]} 25... exd4 {[%clk 0:00:49.6]} 26. Qxe4 {[%clk 0:00:19.5]}
26... Ba3 {[%clk 0:00:50.3]} 27. Qxd4 {[%clk 0:00:19.6]} 27... Qxd4 {[%clk
0:00:46.7]} 28. Nxd4 {[%clk 0:00:20.5]} 28... a5 {[%clk 0:00:34.8]} 29. Rg2
{[%clk 0:00:13.2]} 29... Rc4 {[%clk 0:00:30]} 30. c3 {[%clk 0:00:02.9]} 30...
Rxc3 {[%clk 0:00:25.1]} 31. Ne6 {[%clk 0:00:03.3]} 31... Rc8 {[%clk 0:00:17]}
32. h6 {[%clk 0:00:02.4]} 32... g6 {[%clk 0:00:16.8]} 33. Ng5 {[%clk 0:00:02.8]}
33... Rfc7 {[%clk 0:00:15.9]} 34. Rgd2 {[%clk 0:00:03.2]} 34... Rc1+ {[%clk
0:00:16]} 35. Rxc1 {[%clk 0:00:02.9]} 35... Rxc1# {[%clk 0:00:16.9]} 0-1

[Event "*** Titled Tuesday Blitz"]
[Site "Chess.com"]
[Date "2020.05.05"]
[Round "5"]
[White "ZverevLev"]
[Black "Kaua18"]
[Result "0-1"]
[WhiteElo "2059"]
[BlackElo "2297"]
[TimeControl "180+1"]
[EndTime "10:57:01 PDT"]
[Termination "Kaua18 won by resignation"]

1. e4 {[%clk 0:03:00.9]} 1... c5 {[%clk 0:02:59.4]} 2. Nf3 {[%clk 0:02:59.4]}
2... Nc6 {[%clk 0:02:59.9]} 3. d4 {[%clk 0:02:55.3]} 3... cxd4 {[%clk
0:03:00.3]} 4. Nxd4 {[%clk 0:02:54.2]} 4... Nf6 {[%clk 0:03:01.2]} 5. Nc3 {[%clk
0:02:50.9]} 5... e5 {[%clk 0:03:01.5]} 6. Ndb5 {[%clk 0:02:48.3]} 6... d6 {[%clk
0:03:01.8]} 7. Bg5 {[%clk 0:02:44.7]} 7... a6 {[%clk 0:03:02]} 8. Na3 {[%clk
0:02:43.4]} 8... b5 {[%clk 0:03:02.1]} 9. Bxf6 {[%clk 0:02:42.4]} 9... gxf6
{[%clk 0:03:03]} 10. Nd5 {[%clk 0:02:41]} 10... Bg7 {[%clk 0:03:02.9]} 11. g3
{[%clk 0:02:40.3]} 11... O-O {[%clk 0:03:02.3]} 12. Bg2 {[%clk 0:02:38.6]} 12...
Ne7 {[%clk 0:03:02.5]} 13. c3 {[%clk 0:02:33.5]} 13... Rb8 {[%clk 0:02:58.5]}
14. Nc2 {[%clk 0:02:31.8]} 14... Nxd5 {[%clk 0:02:57.7]} 15. Qxd5 {[%clk
0:02:20.8]} 15... Bb7 {[%clk 0:02:57.9]} 16. Qd2 {[%clk 0:02:19.9]} 16... f5
{[%clk 0:02:55.9]} 17. O-O-O {[%clk 0:02:12.4]} 17... Qa5 {[%clk 0:02:53.9]} 18.
Nb4 {[%clk 0:01:57.6]} 18... Rbc8 {[%clk 0:02:45]} 19. Kb1 {[%clk 0:01:53.9]}
19... Rfd8 {[%clk 0:02:41.8]} 20. Nd5 {[%clk 0:01:49.2]} 20... Bxd5 {[%clk
0:02:38.5]} 21. Qxd5 {[%clk 0:01:47.2]} 21... Rc5 {[%clk 0:02:37.8]} 22. Qd3
{[%clk 0:01:44.5]} 22... f4 {[%clk 0:02:32.2]} 23. gxf4 {[%clk 0:01:36.8]} 23...
Qc7 {[%clk 0:02:29.8]} 24. f5 {[%clk 0:01:33.7]} 24... a5 {[%clk 0:02:26.7]} 25.
Rhg1 {[%clk 0:01:32.2]} 25... Bf6 {[%clk 0:02:25.9]} 26. Bh3+ {[%clk 0:01:31]}
26... Kf8 {[%clk 0:02:24.4]} 27. Qe3 {[%clk 0:01:18]} 27... b4 {[%clk
0:02:16.9]} 28. cxb4 {[%clk 0:01:08.8]} 28... axb4 {[%clk 0:02:16.5]} 29. Bg4
{[%clk 0:01:06.2]} 29... b3 {[%clk 0:01:52.1]} 30. Bh5 {[%clk 0:00:57.4]} 30...
Rc2 {[%clk 0:00:59.8]} 31. Qxb3 {[%clk 0:00:45.6]} 31... Rxf2 {[%clk 0:00:52.9]}
32. Rc1 {[%clk 0:00:41.4]} 32... Qa7 {[%clk 0:00:52.6]} 33. Rc6 {[%clk
0:00:20.6]} 33... Rb8 {[%clk 0:00:48.4]} 34. Ra6 {[%clk 0:00:04.9]} 34... Rxb2+
{[%clk 0:00:39.5]} 35. Kxb2 {[%clk 0:00:01.3]} 0-1